[Event "NOR-ch Various 2019"]
[Site "Larvik"]
[Date "2019.07.09"]
[Round "5.19"]
[White "Nielsen, Andre"]
[Black "Opseth, Oliver"]
[Result "1-0"]
[ECO "B45"]
[WhiteElo "2229"]
[BlackElo "1714"]
[Annotator "NA"]
[PlyCount "61"]
[EventDate "2019.07.06"]
[EventType "swiss"]
[EventCountry "NOR"]
[SourceTitle "playchess.com"]
[Source "ChessBase"]
[SourceQuality "1"]
[TimeControl "40/5400+30:1800+30"]

1. e4 {[%emt 0:00:00]} c5 {[%emt 0:00:00]} 2. Nf3 {[%emt 0:00:00]} e6 {[%emt 0:00:07]} 3. d4 {[%emt 0:00:05]} cxd4 {[%emt 0:02:56]} 4. Nxd4 {[%emt 0:00:18]} Nc6 {[%emt 0:00:57]} 5. Nc3 {[%emt 0:01:01]} Nge7 {[%emt 0:04:42]} 6. Ndb5 {[%emt 0:03:52]} Ng6 {[%emt 0:00:56]} 7. Nd6+ {[%emt 0:01:04]} Bxd6 {[%emt 0:00:06]} 8. Qxd6 {[%emt 0:00:07]} Qe7 {[%emt 0:01:56]} 9. Qc7 {[%emt 0:11:31]} O-O {[%emt 0:05:15]} 10. Be3 {[%emt 0:01:14]} b6 {[%emt 0:04:29]} 11. O-O-O {[%emt 0:02:10]} Rb8 {[%emt 0:02:48]} 12. h4 {[%emt 0:07:24]} b5 {[%emt 0:07:40]} 13. Bxb5 {[%emt 0:03:46]} Bb7 {[%emt 0:09:11]} 14. Rxd7 {[%emt 0:02:00]} Qf6 {[%emt 0:02:05]} 15. Bxc6 {[%emt 0:03:47]} Rfc8 {[%emt 0:04:20]} 16. Qxb7 {[%emt 0:01:22]} Rxb7 {[%emt 0:00:16]} 17. Bxb7 {[%emt 0:00:08]} Rf8 {[%emt 0:01:39]} 18. Rhd1 {[%emt 0:02:09]} Nxh4 {[%emt 0:01:29]} 19. g3 {[%emt 0:02:26]} Nf3 {[%emt 0:02:51]} 20. Bxa7 {[%emt 0:01:46]} Qg5+ {[%emt 0:02:13]} 21. Be3 {[%emt 0:00:14]} Qa5 {[%emt 0:00:10]} 22. Bf4 {[%emt 0:02:22]} e5 {[%emt 0:02:45]} 23. Be3 {[%emt 0:00:11]} Nd4 {[%emt 0:04:46]} 24. Bxd4 {[%emt 0:00:34]} exd4 {[%emt 0:00:02]} 25. R1xd4 {[%emt 0:00:25]} f5 {[%emt 0:01:37]} 26. Bd5+ {[%emt 0:00:48]} Kh8 {[%emt 0:00:09]} 27. e5 {[%emt 0:00:55]} Qb6 {[%emt 0:02:34]} 28. Bb3 {[%emt 0:01:30]} Qh6+ {[%emt 0:01:46]} 29. Kb1 {[%emt 0:01:01]} Qh1+ {[%emt 0:00:17]} 30. Rd1 {[%emt 0:00:08]} Qf3 {[%emt 0:00:35]} 31. Rd8 {[%emt 0:00:30]} 1-0

[Event "NOR-ch Various 2019"]
[Site "Larvik"]
[Date "2019.07.09"]
[Round "5.20"]
[White "Sjoberg, Isak"]
[Black "Sebastian, Andreas"]
[Result "1-0"]
[ECO "C41"]
[WhiteElo "2182"]
[BlackElo "1911"]
[Annotator "NA"]
[PlyCount "69"]
[EventDate "2019.07.06"]
[EventType "swiss"]
[EventCountry "NOR"]
[SourceTitle "playchess.com"]
[Source "ChessBase"]
[SourceQuality "1"]
[TimeControl "40/5400+30:1800+30"]

1. e4 {[%emt 0:01:57]} d6 {[%emt 0:00:00]} 2. d4 {[%emt 0:01:24]} Nf6 {[%emt 0:00:00]} 3. Nc3 {[%emt 0:00:08]} e5 {[%emt 0:00:00]} 4. Nf3 {[%emt 0:00:48]} Nbd7 {[%emt 0:01:35]} 5. Bc4 {[%emt 0:00:06]} Be7 {[%emt 0:01:10]} 6. O-O {[%emt 0:00:05]} O-O {[%emt 0:00:09]} 7. Re1 {[%emt 0:01:27]} c6 {[%emt 0:00:27]} 8. a4 {[%emt 0:00:05]} a5 {[%emt 0:02:50]} 9. h3 {[%emt 0:00:33]} Qc7 {[%emt 0:01:19]} 10. b3 {[%emt 0:01:38]} exd4 {[%emt 0:05:39]} 11. Nxd4 {[%emt 0:04:28]} Re8 {[%emt 0:00:19]} 12. Nf5 {[%emt 0:17:28]} Bf8 {[%emt 0:00:17]} 13. Bg5 {[%emt 0:00:23]} h6 {[%emt 0:08:33]} 14. Bh4 {[%emt 0:01:54]} g6 {[%emt 0:01:25]} 15. Ne3 {[%emt 0:00:48]} Nxe4 {[%emt 0:17:22]} 16. Bxf7+ {[%emt 0:04:44]} Kxf7 {[%emt 0:00:25]} 17. Nxe4 {[%emt 0:00:06]} Ne5 {[%emt 0:10:45]} 18. f4 {[%emt 0:18:08]} Nd7 {[%emt 0:01:24]} 19. Nf5 {[%emt 0:11:35]} d5 {[%emt 0:05:31]} 20. Ned6+ {[%emt 0:00:05]} Bxd6 {[%emt 0:00:48]} 21. Nxh6+ {[%emt 0:00:15]} Kg7 {[%emt 0:07:59]} 22. Rxe8 {[%emt 0:00:11]} Bc5+ {[%emt 0:02:12]} 23. Kh1 {[%emt 0:01:22]} Qxf4 {[%emt 0:07:51]} 24. Ng4 {[%emt 0:00:39]} g5 {[%emt 0:01:30]} 25. Qe2 {[%emt 0:01:18]} Nf8 {[%emt 0:03:18]} 26. Rxc8 {[%emt 0:06:38]} Rxc8 {[%emt 0:00:56]} 27. Rf1 {[%emt 0:02:47]} Re8 {[%emt 0:02:43]} 28. Qd3 {[%emt 0:00:04]} Qe4 {[%emt 0:01:53]} 29. Nf6 {[%emt 0:00:45]} Qxd3 {[%emt 0:03:42]} 30. Nxe8+ {[%emt 0:00:05]} Kg6 {[%emt 0:00:07]} 31. Rf6+ {[%emt 0:00:56]} Kh5 {[%emt 0:00:05]} 32. Ng7+ {[%emt 0:02:12]} Kxh4 {[%emt 0:00:13]} 33. cxd3 {[%emt 0:00:19]} Nd7 {[%emt 0:01:17]} 34. Nf5+ {[%emt 0:00:07]} Kh5 {[%emt 0:00:09]} 35. g4# {[%emt 0:00:17]} 1-0

[Event "NOR-ch Various 2019"]
[Site "Larvik"]
[Date "2019.07.09"]
[Round "5.21"]
[White "Melaa, Sondre"]
[Black "Kizatbay, Abyl"]
[Result "1-0"]
[ECO "D76"]
[WhiteElo "2118"]
[BlackElo "2216"]
[Annotator "NA"]
[PlyCount "105"]
[EventDate "2019.07.06"]
[EventType "swiss"]
[EventCountry "NOR"]
[SourceTitle "playchess.com"]
[Source "ChessBase"]
[SourceQuality "1"]
[TimeControl "40/5400+30:1800+30"]

1. d4 {[%emt 0:00:00]} Nf6 {[%emt 0:00:00]} 2. c4 {[%emt 0:00:00]} g6 {[%emt 0:00:00]} 3. g3 {[%emt 0:00:00]} Bg7 {[%emt 0:00:19]} 4. Bg2 {[%emt 0:00:00]} d5 {[%emt 0:00:02]} 5. cxd5 {[%emt 0:00:07]} Nxd5 {[%emt 0:00:05]} 6. Nf3 {[%emt 0:00:07]} O-O {[%emt 0:00:08]} 7. O-O {[%emt 0:00:31]} Nc6 {[%emt 0:00:36]} 8. e3 {[%emt 0:01:09]} Re8 {[%emt 0:03:01]} 9. Nc3 {[%emt 0:01:25]} Nb6 {[%emt 0:00:06]} 10. Nh4 {[%emt 0:00:05]} e5 {[%emt 0:01:40]} 11. d5 {[%emt 0:01:33]} Na5 {[%emt 0:00:10]} 12. Rb1 {[%emt 0:01:02]} e4 {[%emt 0:12:11]} 13. Nxe4 {[%emt 0:02:34]} Nxd5 {[%emt 0:01:15]} 14. b3 {[%emt 0:06:37]} f5 {[%emt 0:12:42]} 15. Qxd5+ {[%emt 0:06:00]} Qxd5 {[%emt 0:00:42]} 16. Nf6+ {[%emt 0:00:09]} Bxf6 {[%emt 0:00:04]} 17. Bxd5+ {[%emt 0:00:08]} Be6 {[%emt 0:01:29]} 18. Bxe6+ {[%emt 0:06:31]} Rxe6 {[%emt 0:00:11]} 19. Nf3 {[%emt 0:01:08]} Rd8 {[%emt 0:07:58]} 20. Bb2 {[%emt 0:06:00]} Kf7 {[%emt 0:09:59]} 21. Rfc1 {[%emt 0:07:08]} Rc6 {[%emt 0:10:38]} 22. Bxf6 {[%emt 0:02:43]} Kxf6 {[%emt 0:00:21]} 23. Nd4 {[%emt 0:07:07]} Rxc1+ {[%emt 0:10:37]} 24. Rxc1 {[%emt 0:00:07]} Rd7 {[%emt 0:00:18]} 25. b4 {[%emt 0:00:59]} Nc6 {[%emt 0:00:06]} 26. Nxc6 {[%emt 0:00:06]} bxc6 {[%emt 0:00:01]} 27. Rxc6+ {[%emt 0:00:16]} Ke5 {[%emt 0:00:04]} 28. Ra6 {[%emt 0:07:43]} Ke4 {[%emt 0:00:31]} 29. Kg2 {[%emt 0:00:38]} g5 {[%emt 0:00:20]} 30. Rxa7 {[%emt 0:01:51]} f4 {[%emt 0:01:22]} 31. exf4 {[%emt 0:05:07]} gxf4 {[%emt 0:01:05]} 32. Ra3 {[%emt 0:00:26]} Rd2 {[%emt 0:01:58]} 33. Rf3 {[%emt 0:00:34]} fxg3 {[%emt 0:00:34]} 34. hxg3 {[%emt 0:00:11]} Rxa2 {[%emt 0:01:34]} 35. Rf7 {[%emt 0:00:12]} Ra7 {[%emt 0:02:01]} 36. Rxh7 {[%emt 0:03:31]} Kd5 {[%emt 0:00:34]} 37. Rh4 {[%emt 0:02:28]} Ra4 {[%emt 0:03:10]} 38. Rf4 {[%emt 0:01:13]} Ke5 {[%emt 0:01:04]} 39. Rc4 {[%emt 0:00:59]} Kd6 {[%emt 0:01:26]} 40. g4 {[%emt 0:00:29]} c6 {[%emt 0:00:44]} 41. f3 {[%emt 0:30:57]} Kd5 {[%emt 0:30:34]} 42. Re4 {[%emt 0:00:17]} Ra7 {[%emt 0:01:44]} 43. Kg3 {[%emt 0:01:13]} Rf7 {[%emt 0:02:30]} 44. g5 {[%emt 0:01:07]} Rg7 {[%emt 0:00:16]} 45. Kg4 {[%emt 0:00:15]} Rg8 {[%emt 0:00:03]} 46. Rf4 {[%emt 0:01:29]} Ke5 {[%emt 0:00:15]} 47. Rf5+ {[%emt 0:00:25]} Kd4 {[%emt 0:00:11]} 48. Rc5 {[%emt 0:00:20]} Rb8 {[%emt 0:00:21]} 49. Rxc6 {[%emt 0:00:40]} Rxb4 {[%emt 0:00:04]} 50. Re6 {[%emt 0:00:41]} Kd5+ {[%emt 0:00:27]} 51. Re4 {[%emt 0:00:12]} Rb1 {[%emt 0:00:25]} 52. Re2 {[%emt 0:00:15]} Rg1+ {[%emt 0:00:03]} 53. Kf5 {[%emt 0:00:12]} 1-0

[Event "NOR-ch Various 2019"]
[Site "Larvik"]
[Date "2019.07.09"]
[Round "5.22"]
[White "Tunsjo, Axel"]
[Black "Austad, Eirik"]
[Result "1/2-1/2"]
[ECO "B11"]
[WhiteElo "2039"]
[BlackElo "1741"]
[Annotator "NA"]
[PlyCount "103"]
[EventDate "2019.07.06"]
[EventType "swiss"]
[EventCountry "NOR"]
[SourceTitle "playchess.com"]
[Source "ChessBase"]
[SourceQuality "1"]
[TimeControl "40/5400+30:1800+30"]

1. e4 {[%emt 0:01:41]} c6 {[%emt 0:01:06]} 2. Nc3 {[%emt 0:01:08]} d5 {[%emt 0:00:10]} 3. Nf3 {[%emt 0:00:47]} Bg4 {[%emt 0:00:05]} 4. h3 {[%emt 0:00:51]} Bxf3 {[%emt 0:00:24]} 5. Qxf3 {[%emt 0:00:12]} e6 {[%emt 0:01:18]} 6. g4 {[%emt 0:06:27]} dxe4 {[%emt 0:13:53]} 7. Nxe4 {[%emt 0:00:21]} Nd7 {[%emt 0:03:00]} 8. g5 {[%emt 0:07:23]} Nc5 {[%emt 0:22:15]} 9. Ng3 {[%emt 0:18:25]} Qd5 {[%emt 0:09:04]} 10. Qxd5 {[%emt 0:00:07]} exd5 {[%emt 0:06:27]} 11. d4 {[%emt 0:01:03]} Ne6 {[%emt 0:02:03]} 12. c3 {[%emt 0:00:11]} g6 {[%emt 0:03:55]} 13. Bd3 {[%emt 0:00:26]} O-O-O {[%emt 0:07:46]} 14. O-O {[%emt 0:02:02]} h6 {[%emt 0:03:05]} 15. gxh6 {[%emt 0:01:01]} Nxh6 {[%emt 0:01:01]} 16. f4 {[%emt 0:01:34]} f5 {[%emt 0:02:54]} 17. Bd2 {[%emt 0:06:29]} Nf7 {[%emt 0:01:11]} 18. Kg2 {[%emt 0:00:31]} Nd6 {[%emt 0:00:36]} 19. Rae1 {[%emt 0:02:09]} Ne4 {[%emt 0:00:38]} 20. Bxe4 {[%emt 0:00:24]} dxe4 {[%emt 0:00:44]} 21. Be3 {[%emt 0:00:52]} Be7 {[%emt 0:01:04]} 22. Rd1 {[%emt 0:01:53]} Bf6 {[%emt 0:06:06]} 23. Ne2 {[%emt 0:08:03]} Rd7 {[%emt 0:00:35]} 24. Rd2 {[%emt 0:01:21]} Rhd8 {[%emt 0:01:02]} 25. Rfd1 {[%emt 0:14:01]} Nc7 {[%emt 0:01:19]} 26. c4 {[%emt 0:05:04]} Kb8 {[%emt 0:00:34]} 27. Nc3 {[%emt 0:04:00]} Bg7 {[%emt 0:02:31]} 28. Kh2 {[%emt 0:03:22]} Bf6 {[%emt 0:02:26]} 29. a3 {[%emt 0:04:37]} Ka8 {[%emt 0:02:21]} 30. a4 {[%emt 0:05:36]} b6 {[%emt 0:01:51]} 31. Na2 {[%emt 0:01:51]} Kb7 {[%emt 0:01:52]} 32. Nb4 {[%emt 0:01:22]} Be7 {[%emt 0:00:19]} 33. Nc2 {[%emt 0:00:16]} Bf6 {[%emt 0:00:17]} 34. b3 {[%emt 0:00:57]} Rh7 {[%emt 0:00:55]} 35. Rg2 {[%emt 0:00:31]} Rg7 {[%emt 0:01:03]} 36. b4 {[%emt 0:00:30]} a6 {[%emt 0:00:46]} 37. Rg3 {[%emt 0:00:30]} b5 {[%emt 0:00:38]} 38. axb5 {[%emt 0:00:29]} axb5 {[%emt 0:00:09]} 39. Rdg1 {[%emt 0:00:31]} Rdg8 {[%emt 0:00:23]} 40. Na3 {[%emt 0:00:32]} bxc4 {[%emt 0:00:27]} 41. Nxc4 {[%emt 0:02:44]} Nd5 {[%emt 0:02:25]} 42. Ne5 {[%emt 0:01:10]} g5 {[%emt 0:06:02]} 43. fxg5 {[%emt 0:00:18]} Bxe5 {[%emt 0:00:55]} 44. dxe5 {[%emt 0:00:04]} Nxe3 {[%emt 0:03:16]} 45. Rxe3 {[%emt 0:00:07]} Rxg5 {[%emt 0:00:05]} 46. Rxg5 {[%emt 0:02:32]} Rxg5 {[%emt 0:00:08]} 47. Rg3 {[%emt 0:00:15]} Rh5 {[%emt 0:02:55]} 48. Rg7+ {[%emt 0:04:17]} Kb6 {[%emt 0:02:22]} 49. Rf7 {[%emt 0:02:38]} f4 {[%emt 0:01:39]} 50. Rxf4 {[%emt 0:05:20]} Rxe5 {[%emt 0:00:10]} 51. Kg2 {[%emt 0:00:11]} Kb5 {[%emt 0:01:29]} 52. Rf6 {[%emt 0:00:09]} 1/2-1/2

[Event "NOR-ch Various 2019"]
[Site "Larvik"]
[Date "2019.07.09"]
[Round "5.23"]
[White "Ihlen, Sivert"]
[Black "Evenshaug, Amadeus Hestvik"]
[Result "1/2-1/2"]
[ECO "B12"]
[WhiteElo "1580"]
[BlackElo "1769"]
[Annotator "NA"]
[PlyCount "229"]
[EventDate "2019.07.06"]
[EventType "swiss"]
[EventCountry "NOR"]
[SourceTitle "playchess.com"]
[Source "ChessBase"]
[SourceQuality "1"]
[TimeControl "40/5400+30:1800+30"]

1. e4 {[%emt 0:00:00]} c6 {[%emt 0:00:00]} 2. d4 {[%emt 0:00:00]} d5 {[%emt 0:00:00]} 3. e5 {[%emt 0:00:00]} Bf5 {[%emt 0:00:06]} 4. Nd2 {[%emt 0:00:00]} e6 {[%emt 0:00:09]} 5. Nb3 {[%emt 0:00:00]} Nd7 {[%emt 0:00:50]} 6. Nf3 {[%emt 0:00:17]} c5 {[%emt 0:00:11]} 7. dxc5 {[%emt 0:00:10]} Nxc5 {[%emt 0:00:32]} 8. Nxc5 {[%emt 0:00:32]} Bxc5 {[%emt 0:00:08]} 9. Bb5+ {[%emt 0:00:06]} Kf8 {[%emt 0:01:37]} 10. O-O {[%emt 0:02:58]} a6 {[%emt 0:00:24]} 11. Be2 {[%emt 0:05:33]} Ne7 {[%emt 0:02:42]} 12. Bg5 {[%emt 0:03:11]} h6 {[%emt 0:00:15]} 13. Bh4 {[%emt 0:00:09]} Qc7 {[%emt 0:01:37]} 14. c3 {[%emt 0:06:04]} Nc6 {[%emt 0:03:00]} 15. Bg3 {[%emt 0:01:22]} Qb6 {[%emt 0:11:00]} 16. Qd2 {[%emt 0:00:55]} Rc8 {[%emt 0:04:44]} 17. Rfe1 {[%emt 0:05:57]} Kg8 {[%emt 0:09:30]} 18. a3 {[%emt 0:10:03]} Kh7 {[%emt 0:08:01]} 19. Rad1 {[%emt 0:02:46]} Rhd8 {[%emt 0:02:29]} 20. Nd4 {[%emt 0:02:36]} Nxd4 {[%emt 0:02:09]} 21. cxd4 {[%emt 0:00:07]} Be7 {[%emt 0:00:23]} 22. Rc1 {[%emt 0:01:02]} Qb3 {[%emt 0:07:18]} 23. Bd1 {[%emt 0:03:17]} Qb5 {[%emt 0:04:00]} 24. Re3 {[%emt 0:01:31]} Rxc1 {[%emt 0:08:42]} 25. Qxc1 {[%emt 0:00:26]} Qc4 {[%emt 0:01:02]} 26. Qd2 {[%emt 0:03:12]} Qb5 {[%emt 0:06:19]} 27. Rc3 {[%emt 0:02:28]} Rd7 {[%emt 0:03:55]} 28. Qc1 {[%emt 0:27:21]} Qb6 {[%emt 0:00:23]} 29. Qd2 {[%emt 0:01:46]} Qb5 {[%emt 0:00:36]} 30. Bf4 {[%emt 0:00:22]} Qb6 {[%emt 0:03:44]} 31. Be3 {[%emt 0:00:44]} Rc7 {[%emt 0:00:20]} 32. Qc1 {[%emt 0:02:20]} Rxc3 {[%emt 0:01:32]} 33. Qxc3 {[%emt 0:00:13]} Bd8 {[%emt 0:05:16]} 34. Bd2 {[%emt 0:00:42]} Qc7 {[%emt 0:00:27]} 35. Qxc7 {[%emt 0:02:17]} Bxc7 {[%emt 0:00:06]} 36. Bb4 {[%emt 0:00:11]} f6 {[%emt 0:02:20]} 37. f4 {[%emt 0:02:47]} Kg6 {[%emt 0:02:36]} 38. Ba4 {[%emt 0:02:10]} b5 {[%emt 0:00:10]} 39. Bd1 {[%emt 0:00:07]} Be4 {[%emt 0:01:02]} 40. Kf2 {[%emt 0:03:23]} f5 {[%emt 0:05:09]} 41. g3 {[%emt 0:32:03]} Kf7 {[%emt 0:33:24]} 42. Ke2 {[%emt 0:00:51]} g6 {[%emt 0:00:39]} 43. a4 {[%emt 0:00:21]} bxa4 {[%emt 0:00:00]} 44. Bxa4 {[%emt 0:00:00]} a5 {[%emt 0:00:00]} 45. Bc5 {[%emt 0:00:00]} g5 {[%emt 0:00:00]} 46. Kd2 {[%emt 0:00:00]} gxf4 {[%emt 0:00:00]} 47. gxf4 {[%emt 0:00:00]} Bd8 {[%emt 0:00:00]} 48. Bd1 {[%emt 0:00:00]} Kg6 {[%emt 0:00:00]} 49. Bf8 {[%emt 0:00:00]} Bc7 {[%emt 0:00:00]} 50. Be7 {[%emt 0:00:00]} Bb6 {[%emt 0:00:00]} 51. Ke3 {[%emt 0:00:00]} Bb1 {[%emt 0:00:00]} 52. Ba4 {[%emt 0:00:00]} Kf7 {[%emt 0:00:00]} 53. Bc5 {[%emt 0:00:00]} Bd8 {[%emt 0:00:00]} 54. Kd2 {[%emt 0:00:00]} Be4 {[%emt 0:00:00]} 55. Ke3 {[%emt 0:00:00]} Bb1 {[%emt 0:00:00]} 56. Kf3 {[%emt 0:00:00]} Bd3 {[%emt 0:00:00]} 57. b3 {[%emt 0:00:00]} Bb1 {[%emt 0:00:00]} 58. Ke3 {[%emt 0:00:00]} Be4 {[%emt 0:00:00]} 59. Kd2 {[%emt 0:00:00]} Bg2 {[%emt 0:00:00]} 60. Bb5 {[%emt 0:00:19]} Be4 {[%emt 0:00:00]} 61. Be2 {[%emt 0:00:39]} Kg6 {[%emt 0:00:00]} 62. Kc1 {[%emt 0:03:52]} Bg2 {[%emt 0:00:00]} 63. Kb2 {[%emt 0:02:08]} Be4 {[%emt 0:00:00]} 64. Bd1 {[%emt 0:00:15]} Bd3 {[%emt 0:00:00]} 65. Ka3 {[%emt 0:03:53]} Bb5 {[%emt 0:00:00]} 66. b4 {[%emt 0:01:23]} axb4+ {[%emt 0:00:00]} 67. Kxb4 {[%emt 0:00:05]} Bc4 {[%emt 0:00:00]} 68. Bf8 {[%emt 0:00:36]} Bb6 {[%emt 0:00:00]} 69. Bc5 {[%emt 0:02:16]} Bd8 {[%emt 0:00:00]} 70. Ba4 {[%emt 0:00:30]} Kf7 {[%emt 0:00:34]} 71. Ba7 {[%emt 0:00:20]} Be7+ {[%emt 0:00:57]} 72. Ka5 {[%emt 0:00:32]} Bd8+ {[%emt 0:00:04]} 73. Bb6 {[%emt 0:00:26]} Be7 {[%emt 0:00:47]} 74. Bc7 {[%emt 0:00:20]} Ba3 {[%emt 0:01:08]} 75. Kb6 {[%emt 0:02:35]} Bc1 {[%emt 0:00:26]} 76. Kc6 {[%emt 0:00:22]} Bxf4 {[%emt 0:00:14]} 77. Kd6 {[%emt 0:00:08]} Bxh2 {[%emt 0:00:17]} 78. Bd7 {[%emt 0:00:15]} f4 {[%emt 0:02:13]} 79. Bxe6+ {[%emt 0:00:09]} Kf8 {[%emt 0:00:15]} 80. Bg4 {[%emt 0:01:47]} Bb3 {[%emt 0:03:07]} 81. Kd7 {[%emt 0:01:20]} Ba4+ {[%emt 0:00:27]} 82. Kd8 {[%emt 0:00:07]} Bg3 {[%emt 0:04:12]} 83. Bd6+ {[%emt 0:00:25]} Kg7 {[%emt 0:00:42]} 84. Bh5 {[%emt 0:02:25]} Bh4+ {[%emt 0:00:44]} 85. Be7 {[%emt 0:00:01]} Bf2 {[%emt 0:01:44]} 86. Bf6+ {[%emt 0:01:16]} Kh7 {[%emt 0:01:11]} 87. e6 {[%emt 0:00:27]} Be1 {[%emt 0:00:21]} 88. Ke7 {[%emt 0:00:35]} Kg8 {[%emt 0:03:58]} 89. Bf7+ {[%emt 0:00:39]} Kh7 {[%emt 0:00:12]} 90. Kf8 {[%emt 0:00:18]} f3 {[%emt 0:01:04]} 91. Bh5 {[%emt 0:00:34]} f2 {[%emt 0:00:19]} 92. Be2 {[%emt 0:00:06]} Kg6 {[%emt 0:00:41]} 93. Bh4 {[%emt 0:01:33]} f1=Q+ {[%emt 0:00:27]} 94. Bxf1 {[%emt 0:00:08]} Bxh4 {[%emt 0:00:07]} 95. e7 {[%emt 0:00:16]} Bxe7+ {[%emt 0:01:46]} 96. Kxe7 {[%emt 0:00:05]} Kf5 {[%emt 0:00:18]} 97. Bg2 {[%emt 0:02:27]} Bb3 {[%emt 0:00:09]} 98. Bf3 {[%emt 0:00:33]} Kf4 {[%emt 0:00:16]} 99. Bh5 {[%emt 0:00:26]} Ke4 {[%emt 0:00:11]} 100. Kf6 {[%emt 0:00:08]} Kxd4 {[%emt 0:00:05]} 101. Kg7 {[%emt 0:00:32]} Ke3 {[%emt 0:00:22]} 102. Kxh6 {[%emt 0:00:13]} d4 {[%emt 0:00:05]} 103. Kg5 {[%emt 0:00:30]} d3 {[%emt 0:00:10]} 104. Kf5 {[%emt 0:00:39]} d2 {[%emt 0:00:09]} 105. Ke5 {[%emt 0:00:10]} Bc4 {[%emt 0:01:45]} 106. Bd1 {[%emt 0:00:14]} Kf2 {[%emt 0:00:35]} 107. Kd4 {[%emt 0:00:19]} Ke1 {[%emt 0:00:09]} 108. Ba4 {[%emt 0:00:37]} Be2 {[%emt 0:00:40]} 109. Ke3 {[%emt 0:01:30]} Bd1 {[%emt 0:00:20]} 110. Be8 {[%emt 0:00:12]} Be2 {[%emt 0:01:39]} 111. Ba4 {[%emt 0:00:05]} Bb5 {[%emt 0:00:09]} 112. Bb3 {[%emt 0:00:35]} Bc4 {[%emt 0:00:13]} 113. Ba4 {[%emt 0:00:20]} Bb5 {[%emt 0:00:24]} 114. Bb3 {[%emt 0:00:10]} Bc4 {[%emt 0:00:05]} 115. Ba4 {[%emt 0:00:06]} 1/2-1/2

[Event "NOR-ch Various 2019"]
[Site "Larvik"]
[Date "2019.07.09"]
[Round "5.24"]
[White "Helliesen, Lykke-Merlot"]
[Black "Brattgjerd, Isak Vinh"]
[Result "1/2-1/2"]
[ECO "D35"]
[WhiteElo "1505"]
[BlackElo "1571"]
[Annotator "NA"]
[PlyCount "74"]
[EventDate "2019.07.06"]
[EventType "swiss"]
[EventCountry "NOR"]
[SourceTitle "playchess.com"]
[Source "ChessBase"]
[SourceQuality "1"]
[TimeControl "40/5400+30:1800+30"]

1. d4 {[%emt 0:00:00]} Nf6 {[%emt 0:00:22]} 2. c4 {[%emt 0:00:00]} e6 {[%emt 0:00:13]} 3. Nc3 {[%emt 0:00:00]} d5 {[%emt 0:00:12]} 4. cxd5 {[%emt 0:00:34]} exd5 {[%emt 0:00:07]} 5. Bg5 {[%emt 0:01:10]} Be7 {[%emt 0:00:28]} 6. Nf3 {[%emt 0:01:16]} h6 {[%emt 0:00:40]} 7. Bh4 {[%emt 0:01:11]} Bf5 {[%emt 0:01:33]} 8. Qb3 {[%emt 0:03:32]} Nbd7 {[%emt 0:20:07]} 9. Bxf6 {[%emt 0:14:44]} Nxf6 {[%emt 0:01:17]} 10. Qxb7 {[%emt 0:02:35]} Rb8 {[%emt 0:05:52]} 11. Qxa7 {[%emt 0:01:30]} Rxb2 {[%emt 0:00:36]} 12. a3 {[%emt 0:10:24]} O-O {[%emt 0:02:10]} 13. e3 {[%emt 0:14:24]} Rb3 {[%emt 0:02:54]} 14. Nb5 {[%emt 0:08:04]} c6 {[%emt 0:04:54]} 15. Ne5 {[%emt 0:11:21]} cxb5 {[%emt 0:04:13]} 16. Nc6 {[%emt 0:00:33]} Qd7 {[%emt 0:00:10]} 17. Nxe7+ {[%emt 0:01:48]} Kh8 {[%emt 0:00:32]} 18. Qc5 {[%emt 0:00:54]} Rb8 {[%emt 0:02:52]} 19. Be2 {[%emt 0:07:31]} Re8 {[%emt 0:16:55]} 20. Nxf5 {[%emt 0:02:36]} Qxf5 {[%emt 0:00:08]} 21. O-O {[%emt 0:10:26]} Ne4 {[%emt 0:01:17]} 22. Qc2 {[%emt 0:02:29]} Rc3 {[%emt 0:01:08]} 23. Qb1 {[%emt 0:01:16]} Ra8 {[%emt 0:02:42]} 24. f3 {[%emt 0:02:03]} Nd6 {[%emt 0:01:00]} 25. Qxf5 {[%emt 0:00:22]} Nxf5 {[%emt 0:00:08]} 26. Bxb5 {[%emt 0:01:01]} Rcxa3 {[%emt 0:00:54]} 27. Rxa3 {[%emt 0:00:38]} Rxa3 {[%emt 0:00:10]} 28. e4 {[%emt 0:00:35]} Nxd4 {[%emt 0:00:16]} 29. Be8 {[%emt 0:00:24]} dxe4 {[%emt 0:00:51]} 30. fxe4 {[%emt 0:00:18]} f6 {[%emt 0:01:32]} 31. Bg6 {[%emt 0:00:32]} Ne2+ {[%emt 0:01:55]} 32. Kh1 {[%emt 0:00:35]} Nf4 {[%emt 0:00:35]} 33. Bf5 {[%emt 0:00:47]} Nd3 {[%emt 0:00:24]} 34. h3 {[%emt 0:00:29]} Ne5 {[%emt 0:00:23]} 35. Rc1 {[%emt 0:00:32]} Ra8 {[%emt 0:00:42]} 36. Kh2 {[%emt 0:00:33]} Kg8 {[%emt 0:01:20]} 37. Rc7 {[%emt 0:00:32]} Rb8 {[%emt 0:01:53]} 1/2-1/2

[Event "NOR-ch Various 2019"]
[Site "Larvik"]
[Date "2019.07.09"]
[Round "5.25"]
[White "Strand, Vetle Bjorge"]
[Black "Torfoss, Sivert Schanche"]
[Result "1-0"]
[ECO "D02"]
[WhiteElo "1765"]
[BlackElo "1179"]
[Annotator "NA"]
[PlyCount "46"]
[EventDate "2019.07.06"]
[EventType "swiss"]
[EventCountry "NOR"]
[SourceTitle "playchess.com"]
[Source "ChessBase"]
[SourceQuality "1"]
[TimeControl "40/5400+30:1800+30"]

1. d4 {[%emt 0:00:00]} d5 {[%emt 0:00:00]} 2. c4 {[%emt 0:00:00]} c6 {[%emt 0:00:00]} 3. Nc3 {[%emt 0:00:00]} Nf6 {[%emt 0:00:30]} 4. Bf4 {[%emt 0:00:00]} Bf5 {[%emt 0:00:41]} 5. Nf3 {[%emt 0:00:00]} e6 {[%emt 0:01:23]} 6. e3 {[%emt 0:00:08]} Ne4 {[%emt 0:00:55]} 7. Qb3 {[%emt 0:08:42]} Qb6 {[%emt 0:05:25]} 8. c5 {[%emt 0:12:36]} Qxb3 {[%emt 0:02:00]} 9. axb3 {[%emt 0:00:04]} Nd7 {[%emt 0:05:22]} 10. b4 {[%emt 0:05:14]} Be7 {[%emt 0:05:51]} 11. Be2 {[%emt 0:02:49]} O-O {[%emt 0:03:35]} 12. O-O {[%emt 0:01:53]} b5 {[%emt 0:05:27]} 13. Ra6 {[%emt 0:02:03]} Rfc8 {[%emt 0:05:54]} 14. Rfa1 {[%emt 0:01:11]} Ndf6 {[%emt 0:04:55]} 15. Rxa7 {[%emt 0:01:15]} Rxa7 {[%emt 0:09:37]} 16. Rxa7 {[%emt 0:00:06]} Bd8 {[%emt 0:02:10]} 17. Ne5 {[%emt 0:01:52]} h6 {[%emt 0:11:02]} 18. Nxf7 {[%emt 0:03:49]} g5 {[%emt 0:01:17]} 19. Nxh6+ {[%emt 0:01:08]} Kf8 {[%emt 0:00:42]} 20. Nxe4 {[%emt 0:07:08]} Nxe4 {[%emt 0:00:31]} 21. Bd6+ {[%emt 0:02:33]} Nxd6 {[%emt 0:00:32]} 22. cxd6 {[%emt 0:00:07]} Bf6 {[%emt 0:00:37]} 23. Rf7+ {[%emt 0:00:14]} Ke8 {[%emt 0:01:11]} 1-0